[Event "*** Titled Tuesday Blitz"]
[Site "Chess.com"]
[Date "2019.04.02"]
[Round "6"]
[White "albano87"]
[Black "matiss90"]
[Result "1-0"]
[WhiteElo "2314"]
[BlackElo "2443"]
[TimeControl "180+2"]
[EndTime "15:20:07 PDT"]
[Termination "albano87 won by checkmate"]

1. d4 {[%clk 0:03:01.9]} 1... Nf6 {[%clk 0:03:00.9]} 2. Nf3 {[%clk 0:03:03.3]}
2... g6 {[%clk 0:03:02.2]} 3. g3 {[%clk 0:03:04.9]} 3... Bg7 {[%clk 0:03:03.4]}
4. Bg2 {[%clk 0:03:06.6]} 4... O-O {[%clk 0:03:05.3]} 5. O-O {[%clk 0:03:08.3]}
5... d6 {[%clk 0:03:06.4]} 6. a4 {[%clk 0:03:09.7]} 6... a6 {[%clk 0:03:05.8]}
7. Re1 {[%clk 0:03:09.9]} 7... Nc6 {[%clk 0:03:06.2]} 8. d5 {[%clk 0:03:09.1]}
8... Nb4 {[%clk 0:03:04.6]} 9. e4 {[%clk 0:03:10.1]} 9... a5 {[%clk 0:03:04.5]}
10. c3 {[%clk 0:03:04.2]} 10... Na6 {[%clk 0:03:05.2]} 11. h3 {[%clk 0:03:04.3]}
11... Nc5 {[%clk 0:03:03.7]} 12. Nd4 {[%clk 0:03:02.9]} 12... e5 {[%clk
0:03:03.6]} 13. dxe6 {[%clk 0:03:03.3]} 13... fxe6 {[%clk 0:02:58.4]} 14. Na3
{[%clk 0:02:54.7]} 14... e5 {[%clk 0:02:57.9]} 15. Ndb5 {[%clk 0:02:43.1]} 15...
Be6 {[%clk 0:02:49.6]} 16. c4 {[%clk 0:02:34.6]} 16... Qd7 {[%clk 0:02:47]} 17.
Kh2 {[%clk 0:02:34.7]} 17... Nfxe4 {[%clk 0:02:40.5]} 18. Bxe4 {[%clk
0:02:18.4]} 18... Nxe4 {[%clk 0:02:38.4]} 19. Rxe4 {[%clk 0:02:19.3]} 19...
Rxf2+ {[%clk 0:02:39.2]} 20. Kg1 {[%clk 0:02:20.9]} 20... Raf8 {[%clk
0:02:38.6]} 21. Be3 {[%clk 0:02:17]} 21... Rxb2 {[%clk 0:02:31]} 22. g4 {[%clk
0:02:17.3]} 22... Qc6 {[%clk 0:02:20]} 23. Qd3 {[%clk 0:02:12.9]} 23... d5
{[%clk 0:01:51.4]} 24. Qc3 {[%clk 0:01:57]} 24... d4 {[%clk 0:01:24.8]} 25. Qxb2
{[%clk 0:01:45.6]} 25... Qxe4 {[%clk 0:01:25.6]} 26. Bf2 {[%clk 0:01:42.1]}
26... Bxg4 {[%clk 0:01:18]} 27. c5 {[%clk 0:01:32.3]} 27... Be6 {[%clk
0:01:08.6]} 28. Nxc7 {[%clk 0:01:27.8]} 28... Bc8 {[%clk 0:00:55.2]} 29. Nc4
{[%clk 0:01:17.7]} 29... Qd3 {[%clk 0:00:51.1]} 30. Nd6 {[%clk 0:01:12.8]} 30...
Bxh3 {[%clk 0:00:51.3]} 31. Qa2+ {[%clk 0:00:56.2]} 31... Kh8 {[%clk 0:00:41.6]}
32. Nf7+ {[%clk 0:00:56.2]} 32... Rxf7 {[%clk 0:00:41.5]} 33. Qxf7 {[%clk
0:00:56.5]} 33... h5 {[%clk 0:00:36.6]} 34. Ne8 {[%clk 0:00:53.7]} 34... Bh6
{[%clk 0:00:33.5]} 35. Nf6 {[%clk 0:00:50.6]} 35... g5 {[%clk 0:00:29.3]} 36. c6
{[%clk 0:00:13.9]} 36... bxc6 {[%clk 0:00:21.1]} 37. Qg8# {[%clk 0:00:12.8]} 1-0

[Event "*** Titled Tuesday Blitz"]
[Site "Chess.com"]
[Date "2019.04.02"]
[Round "6"]
[White "dopolian"]
[Black "Komissarov_alex"]
[Result "1-0"]
[WhiteElo "2191"]
[BlackElo "2074"]
[TimeControl "180+2"]
[EndTime "15:20:12 PDT"]
[Termination "dopolian won on time"]

1. e4 {[%clk 0:03:01.9]} 1... e5 {[%clk 0:03:00.4]} 2. Nf3 {[%clk 0:03:02.3]}
2... Nc6 {[%clk 0:03:00.9]} 3. Bb5 {[%clk 0:03:03.5]} 3... Nd4 {[%clk
0:03:01.5]} 4. Nxd4 {[%clk 0:03:03.5]} 4... exd4 {[%clk 0:03:02.1]} 5. O-O
{[%clk 0:03:04.8]} 5... c6 {[%clk 0:03:02.8]} 6. Ba4 {[%clk 0:03:05.7]} 6... Nf6
{[%clk 0:02:50.2]} 7. e5 {[%clk 0:03:04]} 7... Ne4 {[%clk 0:02:50.1]} 8. c3
{[%clk 0:02:58.2]} 8... d3 {[%clk 0:02:50.4]} 9. Qf3 {[%clk 0:02:53.9]} 9... Nc5
{[%clk 0:02:50.8]} 10. Bb3 {[%clk 0:02:55]} 10... Nxb3 {[%clk 0:02:45.4]} 11.
axb3 {[%clk 0:02:56.9]} 11... d6 {[%clk 0:02:44.3]} 12. Qxd3 {[%clk 0:02:49]}
12... dxe5 {[%clk 0:02:43.3]} 13. Qe2 {[%clk 0:02:49.3]} 13... Qd5 {[%clk
0:02:22.5]} 14. d4 {[%clk 0:02:42.7]} 14... Qxb3 {[%clk 0:02:15.6]} 15. Qxe5+
{[%clk 0:02:40.5]} 15... Qe6 {[%clk 0:02:15.6]} 16. Qg3 {[%clk 0:02:34.3]} 16...
Qg6 {[%clk 0:02:09.4]} 17. Re1+ {[%clk 0:02:31.6]} 17... Be7 {[%clk 0:01:56.1]}
18. Bg5 {[%clk 0:02:17.6]} 18... Be6 {[%clk 0:01:29.1]} 19. Bxe7 {[%clk
0:01:29.4]} 19... Qxg3 {[%clk 0:01:27.8]} 20. hxg3 {[%clk 0:01:30.6]} 20... Kxe7
{[%clk 0:01:26.5]} 21. f4 {[%clk 0:01:30.9]} 21... Kd6 {[%clk 0:01:24.9]} 22.
Nd2 {[%clk 0:01:30.9]} 22... f5 {[%clk 0:01:23.4]} 23. Re5 {[%clk 0:01:27.5]}
23... g6 {[%clk 0:01:13.5]} 24. Rae1 {[%clk 0:01:23.8]} 24... Rhe8 {[%clk
0:01:11.6]} 25. Kf2 {[%clk 0:01:04.4]} 25... Bf7 {[%clk 0:01:08.4]} 26. Nc4+
{[%clk 0:01:01.2]} 26... Kd7 {[%clk 0:00:49.4]} 27. Rxe8 {[%clk 0:00:58]} 27...
Bxe8 {[%clk 0:00:48.6]} 28. b4 {[%clk 0:00:50.6]} 28... b5 {[%clk 0:00:26.2]}
29. Ne5+ {[%clk 0:00:40.2]} 29... Kd6 {[%clk 0:00:21.4]} 30. Ra1 {[%clk
0:00:41.5]} 30... Bd7 {[%clk 0:00:20]} 31. Ke3 {[%clk 0:00:38.7]} 31... Kc7
{[%clk 0:00:13.6]} 32. d5 {[%clk 0:00:25.5]} 32... cxd5 {[%clk 0:00:12.1]} 33.
Kd4 {[%clk 0:00:27]} 33... Bc6 {[%clk 0:00:07.9]} 34. Ra6 {[%clk 0:00:25.7]}
34... Bb7 {[%clk 0:00:07.8]} 35. Rf6 {[%clk 0:00:22.9]} 35... a5 {[%clk
0:00:06.8]} 36. Rf7+ {[%clk 0:00:23.3]} 36... Kb6 {[%clk 0:00:05.8]} 37. Nd7+
{[%clk 0:00:23.4]} 37... Kc6 {[%clk 0:00:03.5]} 38. Nc5 {[%clk 0:00:21]} 1-0

[Event "*** Titled Tuesday Blitz"]
[Site "Chess.com"]
[Date "2019.04.02"]
[Round "6"]
[White "EvgenyT"]
[Black "GataKamsky1974"]
[Result "1/2-1/2"]
[WhiteElo "2931"]
[BlackElo "2770"]
[TimeControl "180+2"]
[EndTime "15:20:13 PDT"]
[Termination "Game drawn by agreement"]

1. d4 {[%clk 0:02:59.2]} 1... d5 {[%clk 0:03:00.1]} 2. c4 {[%clk 0:02:59.6]}
2... c6 {[%clk 0:03:01.4]} 3. Nf3 {[%clk 0:03:00.6]} 3... Nf6 {[%clk 0:03:02.1]}
4. Nc3 {[%clk 0:03:01.8]} 4... a6 {[%clk 0:03:03.4]} 5. e3 {[%clk 0:03:01.3]}
5... g6 {[%clk 0:03:03.2]} 6. Be2 {[%clk 0:02:56.3]} 6... Bg7 {[%clk 0:03:04.5]}
7. O-O {[%clk 0:02:57.4]} 7... O-O {[%clk 0:03:05.5]} 8. Bd2 {[%clk 0:02:58.2]}
8... Bg4 {[%clk 0:02:57.7]} 9. cxd5 {[%clk 0:02:53.8]} 9... cxd5 {[%clk
0:02:57.3]} 10. Qb3 {[%clk 0:02:55.2]} 10... Ra7 {[%clk 0:02:57]} 11. Ne5 {[%clk
0:02:43.3]} 11... Bxe2 {[%clk 0:02:55.7]} 12. Nxe2 {[%clk 0:02:44.1]} 12... Nfd7
{[%clk 0:02:38]} 13. Nxd7 {[%clk 0:02:28.6]} 13... Qxd7 {[%clk 0:02:38.5]} 14.
Nf4 {[%clk 0:02:30.1]} 14... e6 {[%clk 0:02:37]} 15. Nd3 {[%clk 0:02:31.1]}
15... Nc6 {[%clk 0:02:22.5]} 16. Rac1 {[%clk 0:02:31.6]} 16... Rc8 {[%clk
0:02:18.1]} 17. Qb6 {[%clk 0:02:08.2]} 17... Bf6 {[%clk 0:01:34.7]} 18. Nc5
{[%clk 0:01:30.3]} 18... Qc7 {[%clk 0:01:33.2]} 19. Qxc7 {[%clk 0:01:11.8]}
19... Rxc7 {[%clk 0:01:33.3]} 20. Na4 {[%clk 0:01:01.4]} 20... b5 {[%clk
0:00:52.2]} 21. Nc5 {[%clk 0:01:02.1]} 21... a5 {[%clk 0:00:52.1]} 22. Nd3
{[%clk 0:00:46.3]} 22... Be7 {[%clk 0:00:46.4]} 23. Rfd1 {[%clk 0:00:40.3]}
23... Bd6 {[%clk 0:00:43.9]} 24. Kf1 {[%clk 0:00:38.2]} 24... a4 {[%clk
0:00:37.9]} 25. Rc2 {[%clk 0:00:37.1]} 25... Ne7 {[%clk 0:00:31.9]} 26. Rdc1
{[%clk 0:00:20]} 26... Rxc2 {[%clk 0:00:32.2]} 27. Rxc2 {[%clk 0:00:21.4]} 27...
Rc7 {[%clk 0:00:33.2]} 28. Rxc7 {[%clk 0:00:20.2]} 28... Bxc7 {[%clk 0:00:34.3]}
29. Bb4 {[%clk 0:00:21.7]} 29... Nc6 {[%clk 0:00:32.1]} 30. Bc5 {[%clk
0:00:22.7]} 30... f6 {[%clk 0:00:31.7]} 31. h3 {[%clk 0:00:22.3]} 31... Kf7
{[%clk 0:00:32.1]} 32. Ke2 {[%clk 0:00:23]} 32... e5 {[%clk 0:00:32.4]} 33. dxe5
{[%clk 0:00:22]} 33... fxe5 {[%clk 0:00:21.2]} 34. f3 {[%clk 0:00:22.8]} 34...
Ke6 {[%clk 0:00:21.4]} 35. e4 {[%clk 0:00:23.7]} 35... d4 {[%clk 0:00:21.5]} 36.
Bb4 {[%clk 0:00:07.8]} 36... g5 {[%clk 0:00:21.1]} 37. Bd2 {[%clk 0:00:07.4]}
37... Bd8 {[%clk 0:00:20.6]} 38. Kd1 {[%clk 0:00:06]} 38... Be7 {[%clk
0:00:21.3]} 39. Kc2 {[%clk 0:00:06.7]} 39... h5 {[%clk 0:00:21.9]} 40. b3 {[%clk
0:00:06.3]} 40... axb3+ {[%clk 0:00:21.6]} 1/2-1/2

[Event "*** Titled Tuesday Blitz"]
[Site "Chess.com"]
[Date "2019.04.02"]
[Round "6"]
[White "mikhaillushenkov"]
[Black "bascheyaro"]
[Result "1-0"]
[WhiteElo "2677"]
[BlackElo "2716"]
[TimeControl "180+2"]
[EndTime "15:20:14 PDT"]
[Termination "mikhaillushenkov won by resignation"]

1. Nf3 {[%clk 0:03:01.9]} 1... d5 {[%clk 0:03:01.1]} 2. d4 {[%clk 0:03:00.9]}
2... Nf6 {[%clk 0:03:02.2]} 3. c4 {[%clk 0:03:01.7]} 3... e6 {[%clk 0:03:03.5]}
4. Nc3 {[%clk 0:03:02.2]} 4... Be7 {[%clk 0:03:04.6]} 5. Qc2 {[%clk 0:03:02.6]}
5... O-O {[%clk 0:03:05.4]} 6. e4 {[%clk 0:03:03.3]} 6... dxe4 {[%clk
0:03:05.4]} 7. Nxe4 {[%clk 0:03:05.2]} 7... Nxe4 {[%clk 0:03:06.4]} 8. Qxe4
{[%clk 0:03:07.1]} 8... Nd7 {[%clk 0:03:06.6]} 9. Bd3 {[%clk 0:03:07.8]} 9...
Nf6 {[%clk 0:03:06.5]} 10. Qh4 {[%clk 0:03:07.8]} 10... c5 {[%clk 0:03:05]} 11.
O-O {[%clk 0:03:06.5]} 11... cxd4 {[%clk 0:03:05.1]} 12. Bg5 {[%clk 0:03:06.8]}
12... Re8 {[%clk 0:02:49.7]} 13. Ne5 {[%clk 0:02:52.9]} 13... h6 {[%clk
0:02:38.7]} 14. Bxh6 {[%clk 0:02:45.4]} 14... gxh6 {[%clk 0:02:39.8]} 15. Qxh6
{[%clk 0:02:47.3]} 15... Bf8 {[%clk 0:02:40.8]} 16. Qh4 {[%clk 0:02:39.7]} 16...
Bg7 {[%clk 0:02:40.6]} 17. f4 {[%clk 0:02:39.2]} 17... Nd7 {[%clk 0:02:11.6]}
18. Qh7+ {[%clk 0:02:33.5]} 18... Kf8 {[%clk 0:02:12.9]} 19. Rae1 {[%clk
0:02:30.1]} 19... b6 {[%clk 0:01:38.3]} 20. Rf3 {[%clk 0:01:54.8]} 20... Nf6
{[%clk 0:01:05.3]} 21. Qh4 {[%clk 0:01:52.8]} 21... Ng8 {[%clk 0:01:03]} 22. Qh5
{[%clk 0:01:46.8]} 22... Qf6 {[%clk 0:00:57.9]} 23. b4 {[%clk 0:01:14.6]} 23...
Rd8 {[%clk 0:00:51.6]} 24. c5 {[%clk 0:01:09.2]} 24... bxc5 {[%clk 0:00:48.2]}
25. bxc5 {[%clk 0:01:11.1]} 25... Rb8 {[%clk 0:00:30.7]} 26. Nc6 {[%clk
0:01:10.3]} 26... Bb7 {[%clk 0:00:31.6]} 27. Nxb8 {[%clk 0:01:10]} 27... Bxf3
{[%clk 0:00:32.2]} 28. Qxf3 {[%clk 0:01:02.2]} 28... Rxb8 {[%clk 0:00:33.2]} 29.
c6 {[%clk 0:01:01.8]} 29... Ne7 {[%clk 0:00:34.2]} 30. Rc1 {[%clk 0:00:53.4]}
30... Rc8 {[%clk 0:00:34.5]} 31. g3 {[%clk 0:00:51.6]} 31... Nd5 {[%clk
0:00:34.7]} 32. Be4 {[%clk 0:00:50.6]} 32... Qe7 {[%clk 0:00:36.1]} 33. Qb3
{[%clk 0:00:46.4]} 33... Nc3 {[%clk 0:00:36.3]} 34. Bf3 {[%clk 0:00:47.4]} 34...
Qc5 {[%clk 0:00:35.9]} 35. Kg2 {[%clk 0:00:46.4]} 35... Rxc6 {[%clk 0:00:30.6]}
36. Bxc6 {[%clk 0:00:48.3]} 36... Qxc6+ {[%clk 0:00:32]} 37. Kh3 {[%clk
0:00:50]} 37... Bf6 {[%clk 0:00:32.3]} 38. Qb8+ {[%clk 0:00:48.9]} 38... Kg7
{[%clk 0:00:33.7]} 39. Qxa7 {[%clk 0:00:46.6]} 39... Ne4 {[%clk 0:00:31.1]} 40.
Rxc6 {[%clk 0:00:46.7]} 40... d3 {[%clk 0:00:30]} 41. Qe3 {[%clk 0:00:43.6]}
41... d2 {[%clk 0:00:30.6]} 42. Rd6 {[%clk 0:00:42.6]} 42... Nxd6 {[%clk
0:00:31]} 43. Qxd2 {[%clk 0:00:43.7]} 43... Be7 {[%clk 0:00:30.6]} 44. a4 {[%clk
0:00:44.2]} 44... Kg8 {[%clk 0:00:30.7]} 45. a5 {[%clk 0:00:43.7]} 45... Nc4
{[%clk 0:00:32.1]} 46. Qd7 {[%clk 0:00:41.3]} 46... Nxa5 {[%clk 0:00:29.4]} 47.
Qxe7 {[%clk 0:00:38.8]} 47... Nb3 {[%clk 0:00:29.6]} 48. Qg5+ {[%clk 0:00:37.1]}
48... Kf8 {[%clk 0:00:30.5]} 49. Qe5 {[%clk 0:00:37.4]} 49... Kg8 {[%clk
0:00:30.9]} 1-0

[Event "*** Titled Tuesday Blitz"]
[Site "Chess.com"]
[Date "2019.04.02"]
[Round "6"]
[White "m3alam"]
[Black "INLOVEWITHF"]
[Result "1-0"]
[WhiteElo "2437"]
[BlackElo "2271"]
[TimeControl "180+2"]
[EndTime "15:20:14 PDT"]
[Termination "m3alam won by resignation"]

1. d4 {[%clk 0:02:48.3]} 1... d5 {[%clk 0:03:00]} 2. Nf3 {[%clk 0:02:48.8]} 2...
Nf6 {[%clk 0:03:00.1]} 3. c4 {[%clk 0:02:50.7]} 3... c6 {[%clk 0:03:01]} 4. cxd5
{[%clk 0:02:47.9]} 4... cxd5 {[%clk 0:03:01.8]} 5. Nc3 {[%clk 0:02:49.8]} 5...
Nc6 {[%clk 0:03:02.4]} 6. Bf4 {[%clk 0:02:44.9]} 6... Bf5 {[%clk 0:03:02]} 7. e3
{[%clk 0:02:18.6]} 7... e6 {[%clk 0:03:02.3]} 8. Be2 {[%clk 0:02:15.1]} 8... Be7
{[%clk 0:03:00.3]} 9. O-O {[%clk 0:02:16.3]} 9... O-O {[%clk 0:03:00.6]} 10. Nh4
{[%clk 0:02:13]} 10... Be4 {[%clk 0:02:46.9]} 11. f3 {[%clk 0:02:07]} 11... Bg6
{[%clk 0:02:26.3]} 12. Nxg6 {[%clk 0:02:07.7]} 12... hxg6 {[%clk 0:02:28.2]} 13.
Bg3 {[%clk 0:02:03.6]} 13... Bd6 {[%clk 0:02:17.4]} 14. Bh4 {[%clk 0:02:00.9]}
14... Ne7 {[%clk 0:02:16.7]} 15. e4 {[%clk 0:01:58.3]} 15... e5 {[%clk
0:02:09.5]} 16. Kh1 {[%clk 0:01:37.1]} 16... exd4 {[%clk 0:01:55.3]} 17. Qxd4
{[%clk 0:01:33.1]} 17... Nc6 {[%clk 0:01:55.8]} 18. Qf2 {[%clk 0:01:29.8]} 18...
Be7 {[%clk 0:01:45.9]} 19. Bxf6 {[%clk 0:01:26.5]} 19... Bxf6 {[%clk 0:01:46.4]}
20. Nxd5 {[%clk 0:01:27.3]} 20... Bxb2 {[%clk 0:01:45.9]} 21. Rab1 {[%clk
0:01:22.7]} 21... Bd4 {[%clk 0:01:45.9]} 22. Qg3 {[%clk 0:01:17.5]} 22... Qd7
{[%clk 0:01:32]} 23. Rfd1 {[%clk 0:01:15.3]} 23... Rab8 {[%clk 0:01:15.8]} 24.
Bb5 {[%clk 0:01:12.4]} 24... Qe6 {[%clk 0:00:57]} 25. Bxc6 {[%clk 0:01:07.7]}
25... Be5 {[%clk 0:00:56.9]} 26. Qh4 {[%clk 0:00:42.7]} 26... g5 {[%clk
0:00:54.7]} 27. Qxg5 {[%clk 0:00:39.4]} 27... f6 {[%clk 0:00:52.3]} 28. Ne7+
{[%clk 0:00:29.2]} 28... Qxe7 {[%clk 0:00:29.5]} 29. Bd5+ {[%clk 0:00:25.8]}
29... Rf7 {[%clk 0:00:30.6]} 30. Qf5 {[%clk 0:00:23.7]} 30... b6 {[%clk
0:00:28.2]} 31. f4 {[%clk 0:00:19.1]} 31... Bc3 {[%clk 0:00:25.1]} 32. Bxf7+
{[%clk 0:00:20]} 32... Qxf7 {[%clk 0:00:26.2]} 33. Rd7 {[%clk 0:00:15.3]} 33...
Qxa2 {[%clk 0:00:26.4]} 34. Rbd1 {[%clk 0:00:13.6]} 34... Rf8 {[%clk 0:00:14]}
35. Qg6 {[%clk 0:00:13.8]} 35... f5 {[%clk 0:00:14.8]} 36. e5 {[%clk 0:00:14.3]}
36... Rf7 {[%clk 0:00:12.1]} 37. Rxf7 {[%clk 0:00:15]} 37... Qxf7 {[%clk
0:00:12]} 38. Rd8+ {[%clk 0:00:16.1]} 38... Qf8 {[%clk 0:00:13.6]} 39. Qe6+
{[%clk 0:00:15]} 39... Kh7 {[%clk 0:00:13.7]} 40. Rxf8 {[%clk 0:00:16.3]} 40...
Bxe5 {[%clk 0:00:13.8]} 1-0

[Event "*** Titled Tuesday Blitz"]
[Site "Chess.com"]
[Date "2019.04.02"]
[Round "6"]
[White "enriquetejedor"]
[Black "KhalilMousavi77"]
[Result "0-1"]
[WhiteElo "2532"]
[BlackElo "2734"]
[TimeControl "180+2"]
[EndTime "15:20:18 PDT"]
[Termination "KhalilMousavi77 won by checkmate"]

1. e4 {[%clk 0:02:59.9]} 1... e6 {[%clk 0:02:54.7]} 2. d4 {[%clk 0:03:00.1]}
2... d5 {[%clk 0:02:56.4]} 3. Nd2 {[%clk 0:03:01.9]} 3... c5 {[%clk 0:02:57.6]}
4. exd5 {[%clk 0:03:03.2]} 4... exd5 {[%clk 0:02:59.5]} 5. Ngf3 {[%clk
0:03:04.5]} 5... Nc6 {[%clk 0:03:01.4]} 6. Bb5 {[%clk 0:03:05.3]} 6... Bd6
{[%clk 0:03:03.2]} 7. O-O {[%clk 0:03:06.2]} 7... Ne7 {[%clk 0:03:05.1]} 8. dxc5
{[%clk 0:03:07.7]} 8... Bxc5 {[%clk 0:03:07]} 9. Nb3 {[%clk 0:03:09.5]} 9... Bd6
{[%clk 0:03:08.9]} 10. h3 {[%clk 0:03:09.6]} 10... O-O {[%clk 0:03:10.4]} 11. c3
{[%clk 0:03:10.8]} 11... h6 {[%clk 0:03:11.5]} 12. Bd3 {[%clk 0:03:10.1]} 12...
Bc7 {[%clk 0:03:12.9]} 13. Qc2 {[%clk 0:03:10.3]} 13... Qd6 {[%clk 0:03:13.7]}
14. Re1 {[%clk 0:03:10.2]} 14... Ng6 {[%clk 0:03:14.4]} 15. Be3 {[%clk
0:03:08.6]} 15... b6 {[%clk 0:03:11.3]} 16. Nbd4 {[%clk 0:03:07.1]} 16... Nxd4
{[%clk 0:03:12.3]} 17. Bxd4 {[%clk 0:03:07.2]} 17... Bd7 {[%clk 0:03:04.8]} 18.
Ne5 {[%clk 0:03:01.8]} 18... Nf4 {[%clk 0:03:01.3]} 19. Bf5 {[%clk 0:02:50]}
19... Bxf5 {[%clk 0:02:54.5]} 20. Qxf5 {[%clk 0:02:51.9]} 20... Ne6 {[%clk
0:02:56.4]} 21. Rad1 {[%clk 0:02:33.8]} 21... Rae8 {[%clk 0:02:55.8]} 22. Be3
{[%clk 0:02:24.4]} 22... Qxe5 {[%clk 0:02:55.1]} 23. Qxe5 {[%clk 0:02:16.8]}
23... Bxe5 {[%clk 0:02:57]} 24. Rxd5 {[%clk 0:02:18.5]} 24... Bb8 {[%clk
0:02:57.8]} 25. g3 {[%clk 0:02:17.5]} 25... Rd8 {[%clk 0:02:58.1]} 26. Red1
{[%clk 0:02:17.6]} 26... Rxd5 {[%clk 0:02:59.8]} 27. Rxd5 {[%clk 0:02:19.5]}
27... Rd8 {[%clk 0:03:01.7]} 28. Rxd8+ {[%clk 0:02:17.4]} 28... Nxd8 {[%clk
0:03:03.6]} 29. Kg2 {[%clk 0:02:19.3]} 29... Kf8 {[%clk 0:03:04.6]} 30. Kf3
{[%clk 0:02:19.6]} 30... Ke7 {[%clk 0:03:06.3]} 31. Ke4 {[%clk 0:02:19.1]} 31...
Ke6 {[%clk 0:03:07.9]} 32. g4 {[%clk 0:02:17.3]} 32... Nc6 {[%clk 0:03:09.6]}
33. f4 {[%clk 0:02:13.4]} 33... Kd7 {[%clk 0:03:02.9]} 34. b4 {[%clk 0:02:06.5]}
34... Ne7 {[%clk 0:02:59.9]} 35. c4 {[%clk 0:02:05.5]} 35... Nc8 {[%clk
0:02:59.6]} 36. f5 {[%clk 0:02:03.2]} 36... f6 {[%clk 0:02:41.1]} 37. a4 {[%clk
0:01:59.5]} 37... Be5 {[%clk 0:02:33]} 38. c5 {[%clk 0:01:56.1]} 38... bxc5
{[%clk 0:02:29.9]} 39. Bxc5 {[%clk 0:01:51.3]} 39... Bd6 {[%clk 0:02:28.2]} 40.
Kd5 {[%clk 0:01:50.1]} 40... Ne7+ {[%clk 0:02:02.8]} 41. Kc4 {[%clk 0:01:51.1]}
41... Nc6 {[%clk 0:02:00.8]} 42. a5 {[%clk 0:01:40.7]} 42... a6 {[%clk 0:01:59]}
43. h4 {[%clk 0:01:17.4]} 43... Ne5+ {[%clk 0:01:29]} 44. Kd5 {[%clk 0:01:17.3]}
44... Bxc5 {[%clk 0:01:23.1]} 45. Kxc5 {[%clk 0:01:13]} 45... Nd3+ {[%clk
0:01:19.2]} 46. Kc4 {[%clk 0:01:08.9]} 46... Ne5+ {[%clk 0:01:18.1]} 47. Kc5
{[%clk 0:01:09.7]} 47... Kc7 {[%clk 0:01:15.8]} 48. b5 {[%clk 0:00:32.2]} 48...
axb5 {[%clk 0:01:17.7]} 49. Kxb5 {[%clk 0:00:34.1]} 49... Nxg4 {[%clk
0:01:16.4]} 50. Ka6 {[%clk 0:00:35.2]} 50... Ne3 {[%clk 0:01:11.1]} 51. Ka7
{[%clk 0:00:33.3]} 51... Nxf5 {[%clk 0:01:12.3]} 52. Ka8 {[%clk 0:00:24]} 52...
Nd6 {[%clk 0:01:12.9]} 53. h5 {[%clk 0:00:23]} 53... Nc8 {[%clk 0:01:12.3]} 54.
a6 {[%clk 0:00:21.3]} 54... f5 {[%clk 0:01:13]} 55. a7 {[%clk 0:00:22.1]} 55...
Nb6# {[%clk 0:01:14]} 0-1

[Event "*** Titled Tuesday Blitz"]
[Site "Chess.com"]
[Date "2019.04.02"]
[Round "6"]
[White "Gareth-Bale11"]
[Black "bugsbunny444"]
[Result "1/2-1/2"]
[WhiteElo "2700"]
[BlackElo "2498"]
[TimeControl "180+2"]
[EndTime "15:20:26 PDT"]
[Termination "Game drawn by repetition"]

1. d4 {[%clk 0:02:59.8]} 1... e6 {[%clk 0:02:58.7]} 2. Nf3 {[%clk 0:02:59.7]}
2... c5 {[%clk 0:02:59.7]} 3. c3 {[%clk 0:02:55.2]} 3... Nc6 {[%clk 0:02:59.7]}
4. Bf4 {[%clk 0:02:45.6]} 4... Nf6 {[%clk 0:02:59.5]} 5. e3 {[%clk 0:02:46.1]}
5... d5 {[%clk 0:03:00.8]} 6. Nbd2 {[%clk 0:02:42.8]} 6... cxd4 {[%clk 0:03:02]}
7. exd4 {[%clk 0:02:43.2]} 7... Nh5 {[%clk 0:03:03.5]} 8. Be3 {[%clk 0:02:42.4]}
8... Bd6 {[%clk 0:03:04.8]} 9. Bd3 {[%clk 0:02:42.8]} 9... Nf4 {[%clk
0:03:05.1]} 10. Bxf4 {[%clk 0:02:31.8]} 10... Bxf4 {[%clk 0:03:06.1]} 11. Qe2
{[%clk 0:02:32.6]} 11... O-O {[%clk 0:03:00.1]} 12. g3 {[%clk 0:02:32.9]} 12...
Bh6 {[%clk 0:03:00.8]} 13. Kf1 {[%clk 0:02:28.8]} 13... f6 {[%clk 0:02:48.7]}
14. Nb3 {[%clk 0:02:15.8]} 14... e5 {[%clk 0:02:38.3]} 15. dxe5 {[%clk
0:02:14.9]} 15... Bh3+ {[%clk 0:02:20.6]} 16. Kg1 {[%clk 0:02:14.3]} 16... fxe5
{[%clk 0:02:21.9]} 17. Nxe5 {[%clk 0:02:00.5]} 17... Qb6 {[%clk 0:02:06.9]} 18.
Nxc6 {[%clk 0:01:52.8]} 18... Rxf2 {[%clk 0:01:28.3]} 19. Qxf2 {[%clk 0:01:46]}
19... Be3 {[%clk 0:01:28.9]} 20. Ncd4 {[%clk 0:01:45.7]} 20... Bxf2+ {[%clk
0:01:27.1]} 21. Kxf2 {[%clk 0:01:47.6]} 21... Qf6+ {[%clk 0:01:19]} 22. Ke2
{[%clk 0:01:33.2]} 22... Re8+ {[%clk 0:01:18.3]} 23. Kd2 {[%clk 0:01:33]} 23...
Qf2+ {[%clk 0:01:12.3]} 24. Ne2 {[%clk 0:01:16.2]} 24... Bf5 {[%clk 0:00:44.2]}
25. Bb5 {[%clk 0:00:59.9]} 25... Qe3+ {[%clk 0:00:24.8]} 26. Kd1 {[%clk
0:00:58.6]} 26... Bd7 {[%clk 0:00:17.9]} 27. Bxd7 {[%clk 0:00:47.8]} 27... Qxe2+
{[%clk 0:00:18.8]} 28. Kc1 {[%clk 0:00:49.2]} 28... Re7 {[%clk 0:00:10.4]} 29.
Nd4 {[%clk 0:00:37.9]} 29... Qe3+ {[%clk 0:00:10.9]} 30. Kc2 {[%clk 0:00:38.8]}
30... Qe4+ {[%clk 0:00:10.7]} 31. Kb3 {[%clk 0:00:37.7]} 31... Rxd7 {[%clk
0:00:10.2]} 32. Rae1 {[%clk 0:00:38.4]} 32... Qd3 {[%clk 0:00:11.1]} 33. Rhf1
{[%clk 0:00:37.5]} 33... h6 {[%clk 0:00:07.3]} 34. Rf3 {[%clk 0:00:38.4]} 34...
Qc4+ {[%clk 0:00:08.1]} 35. Kc2 {[%clk 0:00:39.2]} 35... Rc7 {[%clk 0:00:06.6]}
36. Kd2 {[%clk 0:00:32.4]} 36... Qa6 {[%clk 0:00:05.8]} 37. Re8+ {[%clk
0:00:30.6]} 37... Kh7 {[%clk 0:00:07.1]} 38. Ne6 {[%clk 0:00:31.4]} 38... Rc6
{[%clk 0:00:04.2]} 39. Nf8+ {[%clk 0:00:29.3]} 39... Kg8 {[%clk 0:00:05.6]} 40.
Ng6+ {[%clk 0:00:30.4]} 40... Kh7 {[%clk 0:00:07]} 41. Nf8+ {[%clk 0:00:24.2]}
41... Kg8 {[%clk 0:00:08.5]} 42. Ne6+ {[%clk 0:00:18.6]} 42... Kh7 {[%clk
0:00:09.8]} 43. Nf8+ {[%clk 0:00:17.8]} 43... Kg8 {[%clk 0:00:10.6]} 1/2-1/2